Cogmind - Beta 17.1 @@@ ROGUE MODE // 2026.09.11 @ 20:24:07 Player: cel Result: Destroyed by G-47 Trooper with Particle Gun Performance ------------- Evolutions (2) 1000 Regions Visited (5) 1000 Robots Destroyed (38) 190 Value Destroyed (1211) 1211 Prototype IDs (0) 0 Alien Tech Used (0) 0 Bonus (400) 400 TOTAL SCORE: 3801 Bonus ------- Pacifist 200 Entered Garrisons 200 Cogmind --------- Core Integrity 0/550 Matter 300/300 Energy 100/100 System Corruption 0% Temperature Cool (9) Movement Core (150) Ox2 Location -8/Garrison Parts ------- > --- POWER (1) -------- (None) > --- PROPULSION (4) --- (None) > --- UTILITY (4) ------ Small Storage Unit > --- WEAPON (2) ------- Katana > --- INVENTORY (8) ---- Light Ion Engine Huge Storage Unit Heavy EM Pulse Gun Beam Rifle Ion Cannon Autogun Shotgun Peak State ------------ > --- POWER ------------ Improved Ion Engine > --- PROPULSION ------- Carbon-fiber Leg Gravmag System Gravmag System > --- UTILITY ---------- Heat Sink Small Storage Unit Light Armor Plating > --- WEAPON ----------- Gauss Rifle Katana > --- INVENTORY -------- Ion Engine Light Ion Engine Huge Storage Unit Heavy EM Pulse Gun Beam Rifle Ion Cannon Autogun Shotgun [Rating: 24] Favorites ----------- Power Improved Ion Engine Engine Improved Ion Engine Power Core Light Nuclear Core Propulsion Aluminum Leg Leg Aluminum Leg Hover Unit Gravmag System Utility Small Storage Unit Device Heat Sink Storage Small Storage Unit Protection Light Armor Plating Weapon Katana Energy Gun Medium Laser Energy Cannon Ion Cannon Ballistic Gun Light Assault Rifle Slashing Weapon Katana Build | -11 -10 -9 -9 -8 -8 ------- Run | Yrd Mat Mat Sto Mat Gar Slots Evolved 4 | . . 2 . 2 . Power . | . . . . . . Propulsion 2 | . . 2 . . . Utility 2 | . . . . 2 . Weapon . | . . . . . . Parts Attached 38 | 6 . 1 15 7 9 Power 6 | 1 . . 2 2 1 Engine 5 | 1 . . 2 1 1 Core 1 | . . . . 1 . Reactor . | . . . . . . Propulsion 12 | 2 . . 3 3 4 Treads . | . . . . . . Leg 10 | 2 . . 3 3 2 Wheel . | . . . . . . Hover 2 | . . . . . 2 Flight . | . . . . . . Utility 9 | 1 . 1 5 1 1 Device 2 | . . . 1 1 . Storage 1 | 1 . . . . . Processor . | . . . . . . Hackware . | . . . . . . Protection 6 | . . 1 4 . 1 Artifact . | . . . . . . Weapon 11 | 2 . . 5 1 3 Energy Gun 4 | 1 . . 2 . 1 Energy Cannon 1 | . . . . 1 . Ballistic Gun 5 | 1 . . 2 . 2 Ballistic Cannon . | . . . . . . Launcher . | . . . . . . Special Weapon . | . . . . . . Impact Weapon . | . . . . . . Slashing Weapon 1 | . . . 1 . . Piercing Weapon . | . . . . . . Special Melee Weapon . | . . . . . . Unidentified Prototypes . | . . . . . . Parts Lost 20 | . . . 5 . 15 Power 4 | . . . 1 . 3 Propulsion 9 | . . . 2 . 7 Utility 4 | . . . 1 . 3 Weapon 3 | . . . 1 . 2 Highest Loss Streak 8 | . . . 3 . 8 To Critical Strikes . | . . . . . . Average Backups 6 | 1 2 4 7 7 7 Power 1 | . 1 1 1 2 1 Propulsion . | . . . . . . Utility . | . . . . 1 1 Weapon 4 | . 1 3 5 4 4 Tool/Special . | . . . . . . Unused Backups 8 | . . . 2 1 5 Power 3 | . . . 2 . 1 Propulsion . | . . . . . . Utility 1 | . . . . . 1 Weapon 4 | . . . . 1 3 Tool/Special . | . . . . . . Average Slot Usage (%) 74 | . 85 72 71 79 73 Engine 8 | . 14 11 10 7 4 Core 1 | . . . . 1 3 Leg 24 | . 28 22 22 32 23 Hover 1 | . . . . . 4 Device 5 | . . . 3 11 8 Storage 10 | . 14 11 11 9 9 Protection 3 | . . 6 4 . 2 Energy Gun 4 | . 14 11 7 . . Energy Cannon 1 | . . . . 7 1 Ballistic Gun 9 | . 14 11 8 9 8 Slashing Weapon 3 | . . . 3 1 7 Peak Build Rating 24 | 6 6 9 14 19 24 Average Rating 12 | 4 6 7 9 16 19 On Entrance 9 | . 6 6 9 14 19 Avg Prop Armor Cover (%) 6 | . . . . . 6 Naked Turns . | . . . . . . Heaviest Build 23 | 13 13 20 21 23 22 Greatest Support 50 | 20 20 20 33 48 50 Greatest Overweight (x) 4 | 4 . . 1 . 2 Average Overweight (x) . | 1 . . . . . Largest Inventory Capacity 8 | 8 8 8 8 8 8 Average Capacity 7 | 7 8 8 8 8 8 Most Carried 8 | 2 2 6 8 8 8 Average Carried 6 | 1 2 4 7 7 7 Final Capacity 8 | 8 8 8 8 8 8 Final Carried 8 | 2 2 6 8 8 7 Class Distribution -------------------- 58% | Scavenger-Mutant 41% | Mutant Dominant Class ---------------- Mutant | -10/Materials Mutant | -9/Materials Mutant | -9/Storage Scavenger-Mutant | -8/Materials Scavenger-Mutant | -8/Garrison Resources | -11 -10 -9 -9 -8 -8 ----------- Run | Yrd Mat Mat Sto Mat Gar Matter Collected 893 | 161 . 125 243 136 228 Remotely . | . . . . . . Salvage Created 1570 | . . 185 713 404 268 Parts 98 | . . 11 49 21 17 Haulers Intercepted . | . . . . . . Recyclers Shooed . | . . . . . . Parts Field Recycled . | . . . . . . Retrieved Matter . | . . . . . . Parts Self-Destructed . | . . . . . . Prevented . | . . . . . . Parts Restored . | . . . . . . Kills | -11 -10 -9 -9 -8 -8 ------- Run | Yrd Mat Mat Sto Mat Gar Combat Hostiles Destroyed 33 | . . 4 14 7 8 Melee 1 | . . . . . 1 Guns 25 | . . 4 13 1 7 Cannons 5 | . . . . 5 . Classes Destroyed 10 | . . 2 4 3 1 Worker 1 | . . . 1 . . Builder 1 | . . . . 1 . Recycler 2 | . . . 1 1 . Watcher 1 | . . . . 1 . Swarmer 9 | . . . 3 3 3 Grunt 8 | . . 2 3 2 1 Duelist 1 | . . . 1 . . Sentry 11 | . . 2 7 1 1 Hunter 3 | . . . . 1 2 Programmer 1 | . . . . . 1 Best Kill Streak 6 | . . 3 4 6 3 Combat Bots Only 6 | . . 3 4 6 3 Max Kills in Single Turn 1 | . . 1 1 1 1 Gunslinging . | . . . . . . Exploded . | . . . . . . Melee 1 | . . . . . 1 Uniques/NPCs Destroyed . | . . . . . . Combat | -11 -10 -9 -9 -8 -8 -------- Run | Yrd Mat Mat Sto Mat Gar Hostile Shots Fired 314 | . . 23 111 30 150 Missed 85 | . . 8 36 8 33 Hits 229 | . . 15 75 22 117 Melee 3 | . . . 3 . . Projectile 226 | . . 15 72 22 117 Critical Strikes 7 | . . 1 2 . 4 Damage Taken 3168 | . . 199 1039 270 1660 Core 782 | . . 14 215 70 483 Absorbed by Shields . | . . . . . . Regen/Repaired (Parts) 59 | . . . 59 . . Core Remaining (%) 80 | 100 100 . 42 . . Volleys Fired 143 | . 3 13 63 20 44 Largest 2 | . 2 2 2 2 2 Hottest 83 | . 70 70 79 83 83 Shots Fired 210 | . 6 26 87 40 51 Gun 183 | . 6 26 87 20 44 Cannon 27 | . . . . 20 7 Launcher . | . . . . . . Special . | . . . . . . Kinetic 122 | . 3 13 42 20 44 Thermal 88 | . 3 13 45 20 7 Explosive . | . . . . . . Electromagnetic . | . . . . . . Robot Hit Streak 9 | . 1 9 9 6 8 Robot Miss Streak 4 | . 3 1 4 4 2 Penetration Max . | . . . . . . Secondary Targets 2 | . . . 2 . . Max Gunslinging Chain 1 | . . . 1 . . Shots Hit Robots 142 | . 2 20 56 22 42 Core Hits 66 | . . 9 27 13 17 Critical Kills 1 | . . . . 1 . Critical Parts Destroyed 3 | . . . . 3 . Critical Strikes 11 | . . 2 4 4 1 Burn 6 | . . 2 4 . . Meltdown 1 | . . . . 1 . Destroy 3 | . . . . 3 . Sever 1 | . . . . . 1 Melee Attacks 12 | . . . . . 12 Impact . | . . . . . . Slashing 12 | . . . . . 12 Piercing . | . . . . . . Sneak Attacks . | . . . . . . Combat Hostiles . | . . . . . . Follow-up Attacks . | . . . . . . Damage Inflicted 2278 | . 14 193 809 467 795 Guns 1654 | . 14 193 809 141 497 Cannons 418 | . . . . 326 92 Explosions . | . . . . . . Melee 206 | . . . . . 206 Ramming . | . . . . . . Kinetic 1111 | . 14 81 378 141 497 Thermal 961 | . . 112 431 326 92 Explosive . | . . . . . . Electromagnetic . | . . . . . . Impact . | . . . . . . Slashing 206 | . . . . . 206 Piercing . | . . . . . . Highest Corruption 4 | . . . 4 . . Average Corruption 3 | . . . 3 . . Corruption Purged . | . . . . . . Corruption Blocked . | . . . . . . Effects 6 | . . . 6 . . Message Errors 5 | . . . 5 . . Heat Flow Errors 1 | . . . 1 . . Overload Shots . | . . . . . . Overflow Damage . | . . . . . . Projectiles . | . . . . . . Explosions . | . . . . . . Melee . | . . . . . . Knockbacks . | . . . . . . Impact . | . . . . . . Kinetic . | . . . . . . Secondary . | . . . . . . Self-Inflicted Damage . | . . . . . . Shots . | . . . . . . Rammed . | . . . . . . Targets Rammed 1 | . . . 1 . . Kicked 1 | . . . 1 . . Crushed . | . . . . . . Highest Temperature 210 | . 50 164 210 1 17 Average Temperature 69 | . 26 64 75 1 9 Received Heat Transfer 924 | . . 105 288 45 486 Siege Activations . | . . . . . . Martial Activations . | . . . . . . Shielding Activations . | . . . . . . Robots Disrupted . | . . . . . . Combat Hostiles . | . . . . . . Robots Corrupted . | . . . . . . Combat Hostiles . | . . . . . . Parts Fried . | . . . . . . Impact Corruptions . | . . . . . . Robots Melted 2 | . . . 1 1 . Combat Hostiles 2 | . . . 1 1 . Parts Melted 7 | . . 3 3 1 . Heat Transferred 2553 | . . 481 1406 518 148 Parts Sabotaged . | . . . . . . Parts Stolen . | . . . . . . Parts Stripped . | . . . . . . Power Chain Reactions . | . . . . . . Alert | -11 -10 -9 -9 -8 -8 ------- Run | Yrd Mat Mat Sto Mat Gar Maximum Alert Level . | . . . . . . Low Security (%) 100 | 100 100 100 100 100 100 Level 1 . | . . . . . . Level 2 . | . . . . . . Level 3 . | . . . . . . Level 4 . | . . . . . . Level 5 . | . . . . . . High Security . | . . . . . . Max Security . | . . . . . . Peak Influence 195 | . . 80 170 171 195 Initial 105 | . . . 29 61 105 Average 86 | . . 26 64 112 152 Influence Increases 896 | . . 110 395 211 180 Destroy 0b10 Robot/C 660 | . . 80 280 140 160 Destroy 0b10 Robot/NC 25 | . . . 10 15 . Destroy Leader 192 | . . 30 90 52 20 Successful Hack 4 | . . . . 4 . Lose Combat Pursuer 15 | . . . 15 . . Influence Decreases 761 | . . 40 319 195 207 Entered New Map 183 | . . . 41 85 57 Time Decay 378 | . . 40 228 110 . Lost Part 200 | . . . 50 . 150 Squads Dispatched 3 | . . 1 . 2 . Investigation . | . . . . . . Extermination . | . . . . . . Reinforcement 1 | . . 1 . . . Assault . | . . . . . . Garrison 2 | . . . . 2 . Intercept . | . . . . . . Searches Triggered . | . . . . . . Construction Impeded . | . . . . . . Haulers Reinforced . | . . . . . . Active Scanning Responses . | . . . . . . Cargo Convoy Interrupts . | . . . . . . Stealth | -11 -10 -9 -9 -8 -8 --------- Run | Yrd Mat Mat Sto Mat Gar Distress Signals 4 | . . . 4 . . Communications Jammed . | . . . . . . Distress Signals . | . . . . . . Times Spotted 46 | . 2 6 18 8 12 Peak Tracking Total 4 | . 1 2 4 4 4 Tactical Retreats 1 | . . . 1 . . Traps | -11 -10 -9 -9 -8 -8 ------- Run | Yrd Mat Mat Sto Mat Gar Traps Triggered 8 | . . . 4 . 4 Indirectly . | . . . . . . Trap Hack Attempts . | . . . . . . Triggered . | . . . . . . Disarmed . | . . . . . . Reprogrammed . | . . . . . . Reused . | . . . . . . Traps Extracted . | . . . . . . Installed . | . . . . . . Triggered . | . . . . . . Machines | -11 -10 -9 -9 -8 -8 ---------- Run | Yrd Mat Mat Sto Mat Gar Machines Disabled . | . . . . . . Max in Single Turn . | . . . . . . Machines Repaired . | . . . . . . Machines Dismantled . | . . . . . . Machines Sabotaged . | . . . . . . Overloaded Fab Kills . | . . . . . . Hacking | -11 -10 -9 -9 -8 -8 --------- Run | Yrd Mat Mat Sto Mat Gar Machines Accessed 2 | . . . 1 1 . Terminals . | . . . . . . Fabricators . | . . . . . . Repair Stations 1 | . . . 1 . . Recycling Units . | . . . . . . Scanalyzers . | . . . . . . Garrison Access 1 | . . . . 1 . Total Hacks 3 | . . . 2 1 . Successful 3 | . . . 2 1 . Failed . | . . . . . . Catastrophic . | . . . . . . Database Lockouts . | . . . . . . Manual . | . . . . . . Terminals . | . . . . . . Fabricators . | . . . . . . Repair Stations 2 | . . . 2 . . Recycling Units . | . . . . . . Scanalyzers . | . . . . . . Garrison Access 1 | . . . . 1 . Terminal Hacks . | . . . . . . Fabricator Hacks . | . . . . . . Repair Station Hacks 2 | . . . 2 . . Scan Component 1 | . . . 1 . . Repair 1 | . . . 1 . . Recycling Unit Hacks . | . . . . . . Scanalyzer . | . . . . . . Garrison Access Hacks 1 | . . . . 1 . Unlock Access 1 | . . . . 1 . Unauthorized Hacks . | . . . . . . Terminals . | . . . . . . Fabricators . | . . . . . . Repair Stations . | . . . . . . Recycling Units . | . . . . . . Scanalyzers . | . . . . . . Garrison Access . | . . . . . . Data Cores Recovered . | . . . . . . Used . | . . . . . . Hacking Detections . | . . . . . . Full Trace Events . | . . . . . . Feedback Events . | . . . . . . Feedback Blocked . | . . . . . . Robot Schematics Acquired . | . . . . . . Robots Built . | . . . . . . Authchips . | . . . . . . Time . | . . . . . . Total Robot Build Rating . | . . . . . . Part Schematics Acquired . | . . . . . . Parts Built . | . . . . . . Authchips . | . . . . . . Time . | . . . . . . Total Part Build Rating . | . . . . . . Part Studies Acquired . | . . . . . . Parts Repaired 1 | . . . 1 . . Time 32 | . . . 32 . . Parts Recycled . | . . . . . . Recycled Matter . | . . . . . . Retrieved Matter . | . . . . . . Retrieved Components . | . . . . . . Parts Scanalyzed . | . . . . . . Part Schematics Acquired . | . . . . . . Parts Damaged . | . . . . . . Bothacking | -11 -10 -9 -9 -8 -8 ------------ Run | Yrd Mat Mat Sto Mat Gar Used RIF Installer . | . . . . . . Robots Hacked . | . . . . . . Non-combat . | . . . . . . Combat . | . . . . . . Robot Hacks Applied . | . . . . . . Relay Couplers Released . | . . . . . . Fabnet Peak Effective % . | . . . . . . Robots Rewired . | . . . . . . Allies Hacked . | . . . . . . Hacks Repelled . | . . . . . . Allies | -11 -10 -9 -9 -8 -8 -------- Run | Yrd Mat Mat Sto Mat Gar Total Allies . | . . . . . . Largest Group . | . . . . . . Highest-Rated Group . | . . . . . . Highest-Rated Ally . | . . . . . . Total Orders . | . . . . . . Ally Attacks . | . . . . . . Total Damage . | . . . . . . Kills . | . . . . . . Allies Corrupted . | . . . . . . Allies Melted . | . . . . . . Intel | -11 -10 -9 -9 -8 -8 ------- Run | Yrd Mat Mat Sto Mat Gar Active Infowar (turns) . | . . . . . . Robot Analysis Total . | . . . . . . Derelict Logs Recovered . | . . . . . . Drone Launches . | . . . . . . Drone Recoveries . | . . . . . . Exploration | -11 -10 -9 -9 -8 -8 ------------- Run | Yrd Mat Mat Sto Mat Gar Turns Passed 1540 | 70 63 188 553 226 440 Spaces Moved 820 | 38 46 122 259 128 227 Core 21 | 20 . . . . 1 Treads . | . . . . . . Legs 739 | 18 46 122 259 128 166 Wheels . | . . . . . . Hover 60 | . . . . . 60 Flight . | . . . . . . Fastest Speed 50 | 50 120 120 120 120 56 Average Speed 126 | 156 120 120 130 120 123 Slowest Speed 250 | 250 120 120 190 120 190 Overloaded Moves . | . . . . . . Propulsion Burnouts . | . . . . . . Robots Hopped . | . . . . . . Potential Cave-ins . | . . . . . . Cave-ins Triggered . | . . . . . . Exploration Rate (%) 23 | 5 12 12 49 16 45 Regions Visited 5 Branch Regions 1 Pre-discovered Areas . | . . . . . . Known Exits Taken 1 | . . . . 1 . Unknown Exits Taken 4 | 1 1 1 1 . . Scrap Searched . | . . . . . . Spaces Dug . | . . . . . . Terrain Destroyed 4 | . . . . . 4 Melee . | . . . . . . Projectile 4 | . . . . . 4 AOE . | . . . . . . Terrain Rammed . | . . . . . . Walls Destroyed . | . . . . . . Machines Disabled . | . . . . . . Actions | -11 -10 -9 -9 -8 -8 --------- Run | Yrd Mat Mat Sto Mat Gar Total 1101 | 45 48 140 392 160 316 Wait 34 | . . . 32 . 2 Move 816 | 37 45 121 258 128 227 Hop . | . . . . . . Pick Up 20 | 2 . 5 10 1 2 Fast Attach 17 | 6 . . 5 2 4 Attach 9 | . . 1 5 . 3 Detach . | . . . . . . Swap 17 | . . . 8 5 4 Drop 16 | . . . 10 4 2 Fire 143 | . 3 13 63 20 44 Melee 12 | . . . . . 12 Ram . | . . . . . . Kick 1 | . . . 1 . . Crush . | . . . . . . Escape Stasis 16 | . . . . . 16 Rewire . | . . . . . . Trap . | . . . . . . Miscellaneous . | . . . . . . Route ------- -11/Scrapyard -10/Materials -9/Materials -9/Storage -8/Materials -8/Garrison History --------- Turn | Location | Event 41 | -11/Scrapyard | Discovered new exit (range 15) 71 | -11/Scrapyard | Entered Materials 117 | -10/Materials | Discovered new exit (range 6) 134 | -10/Materials | Entered another Materials area 134 | -9/Materials | Evolved 2 slots: Propulsion x2 296 | -9/Materials | Discovered new exit (range 15) 315 | -9/Materials | Build established: Mutant 322 | -9/Materials | Entered Storage 383 | -9/Storage | Repaired Med. Armor Plating 584 | -9/Storage | Lost 3 parts (1p1n1w) 792 | -9/Storage | Core integrity fell below 50% 855 | -9/Storage | Discovered new exit (range 15) 875 | -9/Storage | Entered Materials 875 | -8/Materials | Evolved 2 slots: Utility x2 932 | -8/Materials | Build established: Scavenger-Mutant 948 | -8/Materials | Garrison activated, responded to threat 1101 | -8/Materials | Identified exit to Garrison 1101 | -8/Materials | Entered Garrison 1169 | -8/Garrison | Triggered checkpoint 1279 | -8/Garrison | Triggered checkpoint 1361 | -8/Garrison | Triggered checkpoint 1493 | -8/Garrison | Triggered checkpoint 1515 | -8/Garrison | Core integrity fell below 50% 1534 | -8/Garrison | Core integrity fell below 20% 1541 | -8/Garrison | Destroyed by G-47 Trooper with Particle Gun Last Messages --------------- Field strength at 16. Field strength at 9. Field strength at 2. Stasis field depleted. Beams of light sweep through the air. An alarm sounds. Slug penetrates G-47 Trooper. Carbon-fiber Leg destroyed. Slug penetrates G-47 Trooper. Lgt. Armor Plating destroyed. Critical hit (Burn: +37). Slug penetrates G-47 Trooper. Gauss Rifle destroyed. Gravmag System destroyed. Imp. Ion Engine destroyed. Heat Sink destroyed. G-47 Trooper Aluminum Leg severed. Gravmag System destroyed. Ion Engine destroyed. G-47 Trooper destroyed. Map ----- +----------------------------------------------------+ | = "????????????????????????????????????? | | "????????????????????????????????????? | | "????????????????????????????????????? | | "????????????????????????????????????? | | ## ## #????????????????????????????????????? | | ## ## #????????????????????????????????????? | | ^ #????????????????????????????????????? | | !^ #????????????????????????????????????? | | % #????????????????????????????????????? | | ### = ## #????????????????????????????????????? | | ??# = ## #????????????????????????????????????? | | ??####### #????????????????????????????????????? | | ????????# #????????????????????????????????????? | | ????????# #????????????????????????????????????? | | ????????# #????????????????????????????????????? | | ????????# ################################?????? | | ????????# ????? | | ????????# ????? | | ????????# ????? | | ????????##################### ### #####?????????? | | ????????????????????????????# #?????????????????? | | ????????????????????????????# #?????????????????? | | ??????????????############### #?????????????????? | | ??????????????# g #?????????????????? | | ??????????????# #?????????????????? | | ??????????????## #####*@g#####?????????????????? | | ??????????????#"""""#??#[=!#?????????????????????? | | ??????????????#######??#####?????????????????????? | | ?????????????????????????????????????????????????? | | ?????????????????????????????????????????????????? | | ?????????????????????????????????????????????????? | | ?????????????????????????????????????????????????? | | ?????????????????????????????????????????????????? | | ?????????????????????????????????????????????????? | | ?????????????????????????????????????????????????? | | ?????????????????????????????????????????????????? | | ?????????????????????????????????????????????????? | | ?????????????????????????????????????????????????? | | ?????????????????????????????????????????????????? | | ?????????????????????????????????????????????????? | | ?????????????????????????????????????????????????? | | ?????????????????????????????????????????????????? | | ?????????????????????????????????????????????????? | | ?????????????????????????????????????????????????? | | ?????????????????????????????????????????????????? | | ?????????????????????????????????????????????????? | | ?????????????????????????????????????????????????? | | ?????????????????????????????????????????????????? | | ?????????????????????????????????????????????????? | | ?????????????????????????????????????????????????? | +----------------------------------------------------+ Best States ------------- Heat Dissipation 51 Energy Generation 14 Energy Capacity 265 Matter Stores 300 Matter Capacity 300 Sight Range 16 Terrain Scan Density 10 Armor Coverage 225 Evasion (%) 55 Item Schematics ----------------- None Robot Schematics ------------------ None Fabricated ------------ Nothing Repaired ---------- Med. Armor Plating | 50% | -9/Storage Studied --------- None Alien Tech Used ----------------- None Achievements -------------- None Challenges ------------ None Game ------ Seed PhysicsFieldthrustTerrabomb Manual? 0 Play Time 00:21:13 Cumulative 28.2 hours Start 2026.09.11 @ 16:55:15 End 2026.09.11 @ 20:24:07 Sessions 1 Manual Loads 0 Difficulty Rogue Special Mode None Game No. 42 Rogue 42 Adventurer 0 Explorer 0 Win Type - Total 0 Types 0/0/0/0/0/0/0/0/0/0 Lore% 23 Gallery% 20 Achievement% 17 Wizard Run 0 Options --------- Layout 1 ASCII 0 Keyboard 0 Movement Mouse Keybinds 0 Fullscreen 1 Font 16/SmallcapsGlow Map View 50x40 Zoom Use 0% Tactical HUD 0 Map Filters NONE Filters NONE Steam SD RUN: ddcd7837-f353-4b94-aaf3-8c274b6dd565